bitfinex-derivatives/quotes_SOLF0:USTF0_20260314
["timestamp","ask_amount","ask_price","bid_price","bid_amount"]
[1773516360362,10.348,86.953,86.921,4.53144885]
[1773516360562,9.28741809,86.952,86.921,4.53144885]
[1773516360763,10.348,86.953,86.921,4.53144885]
[1773516361064,9.28741928,86.952,86.921,4.53144885]
[1773516361363,10.348,86.953,86.921,4.53144885]
[1773516361561,9.28811151,86.952,86.921,4.53144885]
[1773516361762,10.348,86.953,86.921,4.53144885]
[1773516375378,10.347,86.961,86.921,4.53144885]
[1773516378682,9.29282967,86.96,86.921,4.53144885]
[1773516378881,9.29282967,86.959,86.921,4.53144885]
[1773516379083,9.29282967,86.958,86.921,4.53144885]
[1773516379284,10.347,86.961,86.921,4.53144885]
[1773516379485,9.29277862,86.96,86.921,4.53144885]
[1773516379681,9.29277862,86.959,86.921,4.53144885]
[1773516379878,9.29277862,86.958,86.921,4.53144885]
[1773516380078,10.347,86.961,86.921,4.53144885]
[1773516380283,9.29279429,86.96,86.921,4.53144885]
[1773516380483,9.29279429,86.959,86.921,4.53144885]
[1773516380782,9.29279429,86.958,86.921,4.53144885]
[1773516380976,10.347,86.961,86.921,4.53144885]
[1773516381179,9.29181692,86.96,86.921,4.53144885]
[1773516381380,9.29181692,86.959,86.921,4.53144885]
[1773516381577,9.29181692,86.958,86.921,4.53144885]
[1773516381780,10.347,86.961,86.921,4.53144885]
[1773516381977,9.29178685,86.96,86.921,4.53144885]
[1773516382276,9.29178685,86.959,86.921,4.53144885]
[1773516382480,9.29178685,86.958,86.921,4.53144885]
[1773516382680,10.347,86.961,86.921,4.53144885]
[1773516382885,9.29090804,86.96,86.921,4.53144885]
[1773516383086,9.29090804,86.959,86.921,4.53144885]
[1773516383283,9.29090804,86.958,86.921,4.53144885]
[1773516383485,10.347,86.961,86.921,4.53144885]
[1773516383684,9.29338997,86.96,86.921,4.53144885]
[1773516383883,9.29338997,86.959,86.921,4.53144885]
[1773516384087,9.29338997,86.958,86.921,4.53144885]
[1773516384286,10.347,86.961,86.921,4.53144885]
[1773516384485,9.29348005,86.96,86.921,4.53144885]
[1773516384787,9.29348005,86.959,86.921,4.53144885]
[1773516384986,9.29348005,86.958,86.921,4.53144885]
[1773516385288,10.347,86.961,86.921,4.53144885]
[1773516385584,10.348,86.957,86.921,4.53144885]
[1773516385788,9.2916942,86.956,86.921,4.53144885]
[1773516385988,3.12458268,86.96,86.921,4.53144885]
[1773516386289,9.29155006,86.959,86.921,4.53144885]
[1773516386482,9.29155006,86.958,86.921,4.53144885]
[1773516386688,10.348,86.955,86.921,4.53144885]
[1773516393698,3.12458268,86.95,86.911,4.57639881]
[1773516398800,10.348,86.955,86.911,4.57639881]
[1773516398999,10.348,86.953,86.911,4.57639881]
[1773516399194,9.29554712,86.952,86.911,4.57639881]
[1773516399496,9.29554712,86.951,86.911,4.57639881]
[1773516399697,10.348,86.953,86.911,4.57639881]
[1773516399893,9.29602302,86.952,86.911,4.57639881]
[1773516400098,9.29602302,86.951,86.911,4.57639881]
[1773516400299,10.348,86.953,86.911,4.57639881]
[1773516400501,9.29657324,86.952,86.911,4.57639881]
[1773516400698,9.29657324,86.951,86.911,4.57639881]
[1773516400997,10.348,86.953,86.911,4.57639881]
[1773516401193,9.29718245,86.952,86.911,4.57639881]
[1773516401392,9.29718245,86.951,86.911,4.57639881]
[1773516401599,10.348,86.953,86.911,4.57639881]
[1773516401796,9.29709658,86.952,86.911,4.57639881]
[1773516401997,9.29709658,86.951,86.911,4.57639881]
[1773516402198,9.29709658,86.95,86.911,4.57639881]
[1773516402399,10.348,86.953,86.911,4.57639881]
[1773516402601,9.29766181,86.952,86.911,4.57639881]
[1773516402902,9.29766181,86.951,86.911,4.57639881]
[1773516403205,9.29766181,86.95,86.911,4.57639881]
[1773516403403,10.348,86.953,86.911,4.57639881]
[1773516403600,9.29828479,86.952,86.911,4.57639881]
[1773516403801,9.29828479,86.951,86.911,4.57639881]
[1773516404100,9.29828479,86.95,86.911,4.57639881]
[1773516404300,10.348,86.953,86.911,4.57639881]
[1773516404605,9.29894838,86.952,86.911,4.57639881]
[1773516404801,9.29894838,86.951,86.911,4.57639881]
[1773516405006,9.29894838,86.95,86.911,4.57639881]
[1773516405205,10.348,86.953,86.911,4.57639881]
[1773516405408,9.29792238,86.952,86.911,4.57639881]
[1773516405708,9.29792238,86.951,86.911,4.57639881]
[1773516406005,9.29792238,86.95,86.911,4.57639881]
[1773516406207,10.348,86.953,86.911,4.57639881]
[1773516406507,9.29844885,86.952,86.911,4.57639881]
[1773516406709,9.29844885,86.951,86.911,4.57639881]
[1773516406908,9.29844885,86.95,86.911,4.57639881]
[1773516407207,10.348,86.953,86.911,4.57639881]
[1773516407408,9.29907988,86.952,86.911,4.57639881]
[1773516407608,9.29907988,86.951,86.911,4.57639881]
[1773516407809,9.29907988,86.95,86.911,4.57639881]
[1773516408010,10.348,86.953,86.911,4.57639881]
[1773516408212,9.29910832,86.952,86.911,4.57639881]
[1773516408408,9.29910832,86.951,86.911,4.57639881]
[1773516408710,10.348,86.953,86.911,4.57639881]
[1773516408910,9.29892646,86.952,86.911,4.57639881]
[1773516409209,9.29892646,86.951,86.911,4.57639881]
[1773516409409,10.348,86.953,86.911,4.57639881]
[1773516409601,9.29876985,86.952,86.911,4.57639881]
[1773516409805,9.29876985,86.951,86.911,4.57639881]
[1773516410111,10.348,86.953,86.911,4.57639881]
[1773516410408,9.29876985,86.952,86.911,4.57639881]
[1773516410708,9.29876985,86.951,86.911,4.57639881]
[1773516411012,10.348,86.953,86.911,4.57639881]
[1773516411211,9.2986404,86.952,86.911,4.57639881]
[1773516411411,9.2986404,86.951,86.911,4.57639881]
[1773516411612,10.348,86.953,86.911,4.57639881]
[1773516411812,9.29853029,86.952,86.911,4.57639881]
[1773516412013,9.29853029,86.951,86.911,4.57639881]
[1773516412212,10.348,86.953,86.911,4.57639881]
[1773516412414,9.29844198,86.952,86.911,4.57639881]
[1773516412606,9.29844198,86.951,86.911,4.57639881]
[1773516412910,10.348,86.953,86.911,4.57639881]
[1773516413109,9.29844198,86.952,86.911,4.57639881]
[1773516413305,9.29844198,86.951,86.911,4.57639881]
[1773516413506,10.348,86.953,86.911,4.57639881]
[1773516413711,9.30885724,86.952,86.911,4.57639881]
[1773516413911,9.30885724,86.951,86.911,4.57639881]
[1773516414113,10.348,86.953,86.911,4.57639881]
[1773516414315,9.30881061,86.952,86.911,4.57639881]
[1773516414511,9.30881061,86.951,86.911,4.57639881]
[1773516414813,10.348,86.953,86.911,4.57639881]
[1773516415012,9.30881061,86.952,86.911,4.57639881]
[1773516415217,9.30881061,86.951,86.911,4.57639881]
[1773516415513,10.348,86.953,86.911,4.57639881]
[1773516415714,9.30878686,86.952,86.911,4.57639881]
[1773516415914,9.30878686,86.951,86.911,4.57639881]
[1773516416114,10.348,86.953,86.911,4.57639881]
[1773516416315,9.30878652,86.952,86.911,4.57639881]
[1773516416616,9.30878652,86.951,86.911,4.57639881]
[1773516416815,10.348,86.953,86.911,4.57639881]
[1773516417014,9.30878312,86.952,86.911,4.57639881]
[1773516417217,9.30878312,86.951,86.911,4.57639881]
[1773516417417,10.348,86.953,86.911,4.57639881]
[1773516417610,9.30880023,86.952,86.911,4.57639881]
[1773516417914,9.30880023,86.951,86.911,4.57639881]
[1773516418217,9.30880023,86.95,86.911,4.57639881]
[1773516418413,10.348,86.953,86.911,4.57639881]
[1773516422921,18.88591168,86.952,86.911,4.57639881]
[1773516423120,18.88591168,86.951,86.911,4.57639881]
[1773516423419,18.88591168,86.95,86.911,4.57639881]
[1773516423619,9.57330413,86.949,86.911,4.57639881]
[1773516423818,10.348,86.953,86.911,4.57639881]
[1773516424020,18.88526327,86.952,86.911,4.57639881]
[1773516424214,18.88526327,86.951,86.911,4.57639881]
[1773516424410,18.88526327,86.95,86.911,4.57639881]
[1773516424620,9.57298366,86.949,86.911,4.57639881]
[1773516424821,10.348,86.953,86.911,4.57639881]
[1773516425023,18.88476545,86.952,86.911,4.57639881]
[1773516425223,18.88476545,86.951,86.911,4.57639881]
[1773516425424,18.88476545,86.95,86.911,4.57639881]
[1773516425624,9.57273848,86.949,86.911,4.57639881]
[1773516425826,10.348,86.953,86.911,4.57639881]
[1773516426027,18.88444554,86.952,86.911,4.57639881]
[1773516426324,18.88444554,86.951,86.911,4.57639881]
[1773516426525,18.88444554,86.95,86.911,4.57639881]
[1773516426727,9.5725827,86.949,86.911,4.57639881]
[1773516426928,10.348,86.953,86.911,4.57639881]
[1773516427126,18.8886498,86.952,86.911,4.57639881]
[1773516427324,18.8886498,86.951,86.911,4.57639881]
[1773516427525,9.31174157,86.95,86.911,4.57639881]
[1773516427720,10.348,86.953,86.911,4.57639881]
[1773516427926,18.88854987,86.952,86.911,4.57639881]
[1773516428132,18.88854987,86.951,86.911,4.57639881]
[1773516428427,9.31168637,86.95,86.911,4.57639881]
[1773516428622,9.31081877,86.949,86.911,4.57639881]
[1773516428828,9.31081877,86.948,86.911,4.57639881]
[1773516429029,9.31081877,86.947,86.911,4.57639881]
[1773516429230,10.348,86.953,86.911,4.57639881]
[1773516429431,18.88693059,86.952,86.911,4.57639881]
[1773516429631,18.88693059,86.951,86.911,4.57639881]
[1773516429931,9.31087815,86.95,86.911,4.57639881]
[1773516430133,9.31087815,86.949,86.911,4.57639881]
[1773516430332,9.31087815,86.948,86.911,4.57639881]
[1773516430527,9.31087815,86.947,86.911,4.57639881]
[1773516430732,10.348,86.953,86.911,4.57639881]
[1773516430932,18.88344438,86.952,86.911,4.57639881]
[1773516431133,18.88344438,86.951,86.911,4.57639881]
[1773516431335,9.3091549,86.95,86.911,4.57639881]
[1773516431632,9.3091549,86.949,86.911,4.57639881]
[1773516431831,9.3091549,86.948,86.911,4.57639881]
[1773516432132,9.3091549,86.947,86.911,4.57639881]
[1773516432333,10.348,86.953,86.911,4.57639881]
[1773516432536,18.88339932,86.952,86.911,4.57639881]
[1773516432835,18.88339932,86.951,86.911,4.57639881]
[1773516433134,9.30912452,86.95,86.911,4.57639881]
[1773516433333,9.30912452,86.949,86.911,4.57639881]
[1773516433536,9.30912452,86.948,86.911,4.57639881]
[1773516433736,9.30912452,86.947,86.911,4.57639881]
[1773516433936,10.348,86.953,86.911,4.57639881]
[1773516434137,18.88351274,86.952,86.911,4.57639881]
[1773516434336,18.88351274,86.951,86.911,4.57639881]
[1773516434532,9.30917713,86.95,86.911,4.57639881]
[1773516434836,9.30917713,86.949,86.911,4.57639881]
[1773516435028,9.30917713,86.948,86.911,4.57639881]
[1773516435233,9.30917713,86.947,86.911,4.57639881]
[1773516435429,10.348,86.953,86.911,4.57639881]
[1773516435737,18.88402788,86.952,86.911,4.57639881]
[1773516435936,18.88402788,86.951,86.911,4.57639881]
[1773516436139,18.88423517,86.95,86.911,4.57639881]
[1773516436339,9.30942454,86.949,86.911,4.57639881]
[1773516436645,9.30942454,86.948,86.911,4.57639881]
[1773516436838,9.30942454,86.947,86.911,4.57639881]
[1773516437138,9.30942454,86.946,86.911,4.57639881]
[1773516437338,10.348,86.953,86.911,4.57639881]
[1773516437539,18.88493903,86.952,86.911,4.57639881]
[1773516437735,18.88493903,86.951,86.911,4.57639881]
[1773516437933,18.88493903,86.95,86.911,4.57639881]
[1773516438139,9.30986624,86.949,86.911,4.57639881]
[1773516438439,9.30986624,86.948,86.911,4.57639881]
[1773516438739,9.30986624,86.947,86.911,4.57639881]
[1773516438940,9.30986624,86.946,86.911,4.57639881]
[1773516439140,10.348,86.953,86.911,4.57639881]
[1773516439440,18.88588938,86.952,86.911,4.57639881]
[1773516439640,18.88588938,86.951,86.911,4.57639881]
[1773516439841,18.88588938,86.95,86.911,4.57639881]
[1773516440042,9.31015122,86.949,86.911,4.57639881]
[1773516440340,9.31015122,86.948,86.911,4.57639881]
[1773516440542,9.31015122,86.947,86.911,4.57639881]
[1773516440734,9.31015122,86.946,86.911,4.57639881]
[1773516440936,10.348,86.953,86.911,4.57639881]
[1773516441143,18.88704133,86.952,86.911,4.57639881]
[1773516441443,18.88704133,86.951,86.911,4.57639881]
[1773516441743,18.88704133,86.95,86.911,4.57639881]
[1773516442043,9.31088838,86.949,86.911,4.57639881]
[1773516442232,9.31088838,86.948,86.911,4.57639881]
[1773516442432,9.31088838,86.947,86.911,4.57639881]
[1773516442634,9.31088838,86.946,86.911,4.57639881]
[1773516442834,10.348,86.953,86.911,4.57639881]
[1773516443038,18.88786681,86.952,86.911,4.57639881]
[1773516443244,18.88786681,86.951,86.911,4.57639881]
[1773516443542,18.88786681,86.95,86.911,4.57639881]
[1773516443744,9.31130523,86.949,86.911,4.57639881]
[1773516443942,9.31130523,86.948,86.911,4.57639881]
[1773516444143,9.31130523,86.947,86.911,4.57639881]
[1773516444343,9.31130523,86.946,86.911,4.57639881]
[1773516444544,10.348,86.953,86.911,4.57639881]
[1773516444745,18.88942981,86.952,86.911,4.57639881]
[1773516444941,18.88942981,86.951,86.911,4.57639881]
[1773516445240,18.88942981,86.95,86.911,4.57639881]
[1773516445435,9.31295761,86.949,86.911,4.57639881]
[1773516445640,9.31295761,86.948,86.911,4.57639881]
[1773516445839,9.31295761,86.947,86.911,4.57639881]
[1773516446045,9.31295761,86.946,86.911,4.57639881]
[1773516446344,10.348,86.953,86.911,4.57639881]
[1773516446644,10.349,86.951,86.911,4.57639881]
[1773516446842,18.88746845,86.95,86.911,4.57639881]
[1773516447045,9.31199002,86.949,86.911,4.57639881]
[1773516447348,9.31199002,86.948,86.911,4.57639881]
[1773516447645,9.31199002,86.947,86.911,4.57639881]
[1773516447845,9.31199002,86.946,86.911,4.57639881]
[1773516448041,10.349,86.951,86.911,4.57639881]
[1773516448249,9.30941404,86.95,86.911,4.57639881]
[1773516448546,9.30941404,86.949,86.911,4.57639881]
[1773516448746,9.30941404,86.948,86.911,4.57639881]
[1773516449044,9.30941404,86.947,86.911,4.57639881]
[1773516449247,9.30941404,86.946,86.911,4.57639881]
[1773516449447,10.349,86.951,86.911,4.57639881]
[1773516449648,9.30942693,86.95,86.911,4.57639881]
[1773516449948,9.30942693,86.949,86.911,4.57639881]
[1773516450149,9.30942693,86.948,86.911,4.57639881]
[1773516450350,9.30942693,86.947,86.911,4.57639881]
[1773516450548,9.30942693,86.946,86.911,4.57639881]
[1773516450850,10.349,86.951,86.911,4.57639881]
[1773516451044,9.30949203,86.95,86.911,4.57639881]
[1773516451242,9.30949203,86.949,86.911,4.57639881]
[1773516451442,9.30949203,86.948,86.911,4.57639881]
[1773516451648,9.30949203,86.947,86.911,4.57639881]
[1773516451848,9.30949203,86.946,86.911,4.57639881]
[1773516452049,10.349,86.951,86.911,4.57639881]
[1773516452244,9.30961637,86.95,86.911,4.57639881]
[1773516452450,9.30961637,86.949,86.911,4.57639881]
[1773516452652,9.30961637,86.948,86.911,4.57639881]
[1773516452851,9.30961637,86.947,86.911,4.57639881]
[1773516453052,9.30961637,86.946,86.911,4.57639881]
[1773516453252,10.349,86.951,86.911,4.57639881]
[1773516453454,9.30979233,86.95,86.911,4.57639881]
[1773516453654,9.30979233,86.949,86.911,4.57639881]
[1773516453854,9.30979233,86.948,86.911,4.57639881]
[1773516454054,9.30979233,86.947,86.911,4.57639881]
[1773516454353,9.30979233,86.946,86.911,4.57639881]
[1773516454557,10.349,86.951,86.911,4.57639881]
[1773516454758,9.30992103,86.95,86.911,4.57639881]
[1773516454950,9.30992103,86.949,86.911,4.57639881]
[1773516455151,9.30992103,86.948,86.911,4.57639881]
[1773516455454,9.30992103,86.947,86.911,4.57639881]
[1773516455654,9.30992103,86.946,86.911,4.57639881]
[1773516455855,10.349,86.951,86.911,4.57639881]
[1773516456054,9.31006809,86.95,86.911,4.57639881]
[1773516456355,9.31006809,86.949,86.911,4.57639881]
[1773516456551,9.31006809,86.948,86.911,4.57639881]
[1773516456751,9.31006809,86.947,86.911,4.57639881]
[1773516456948,9.31006809,86.946,86.911,4.57639881]
[1773516457152,10.349,86.951,86.911,4.57639881]
[1773516457356,18.8777703,86.95,86.911,4.57639881]
[1773516457554,9.31045667,86.949,86.911,4.57639881]
[1773516457755,9.31045667,86.948,86.911,4.57639881]
[1773516457957,9.31045667,86.947,86.911,4.57639881]
[1773516458152,9.31045667,86.946,86.911,4.57639881]
[1773516458356,10.349,86.951,86.911,4.57639881]
[1773516458558,10.349,86.949,86.911,4.57639881]
[1773516466164,10.349,86.947,86.911,4.57639881]
[1773516466852,18.88334395,86.946,86.881,4.54456633]
[1773516467057,160.899,86.998,86.881,4.54456633]
[1773516467058,3.12508125,86.94,86.882,4.54456633]
[1773516467362,3.12508125,86.95,86.891,4.54456633]
[1773516467659,18.87670087,86.949,86.891,4.54456633]
[1773516467860,18.87670087,86.948,86.891,4.54456633]
[1773516468061,18.87670087,86.947,86.891,4.54456633]
[1773516468263,18.87670087,86.946,86.891,4.54456633]
[1773516468563,10.351,86.93,86.891,4.54456633]
[1773516485079,10.35,86.939,86.891,4.54456633]
[1773516485279,9.31923108,86.938,86.891,4.54456633]
[1773516485481,9.31923108,86.937,86.891,4.54456633]
[1773516485680,10.35,86.939,86.891,4.54456633]
[1773516485881,9.31921343,86.938,86.891,4.54456633]
[1773516486075,9.31921343,86.937,86.891,4.54456633]
[1773516486283,10.35,86.939,86.891,4.54456633]
[1773516486480,9.31908899,86.938,86.891,4.54456633]
[1773516486682,9.31908899,86.937,86.891,4.54456633]
[1773516486980,10.35,86.939,86.891,4.54456633]
[1773516487181,9.31993317,86.938,86.891,4.54456633]
[1773516487383,9.31993317,86.937,86.891,4.54456633]
[1773516487682,10.35,86.939,86.891,4.54456633]
[1773516487884,9.31984568,86.938,86.891,4.54456633]
[1773516488082,10.35,86.939,86.891,4.54456633]
[1773516488385,9.31980873,86.938,86.891,4.54456633]
[1773516488584,10.35,86.939,86.891,4.54456633]
[1773516488784,9.31978912,86.938,86.891,4.54456633]
[1773516489079,10.35,86.939,86.891,4.54456633]
[1773516489285,9.31977073,86.938,86.891,4.54456633]
[1773516489582,10.35,86.939,86.891,4.54456633]
[1773516489784,9.31976944,86.938,86.891,4.54456633]
[1773516490082,10.35,86.939,86.891,4.54456633]
[1773516490282,9.31976978,86.938,86.891,4.54456633]
[1773516490479,10.35,86.939,86.891,4.54456633]
[1773516490681,9.31978616,86.938,86.891,4.54456633]
[1773516490878,10.35,86.939,86.891,4.54456633]
[1773516491082,9.31977854,86.938,86.891,4.54456633]
[1773516491382,10.35,86.939,86.891,4.54456633]
[1773516491581,9.3198277,86.938,86.891,4.54456633]
[1773516491882,10.35,86.939,86.891,4.54456633]
[1773516492082,9.31982093,86.938,86.891,4.54456633]
[1773516492282,10.35,86.939,86.891,4.54456633]
[1773516492484,9.31990471,86.938,86.891,4.54456633]
[1773516492782,10.35,86.939,86.891,4.54456633]
[1773516492982,9.31990471,86.938,86.891,4.54456633]
[1773516493183,10.35,86.939,86.891,4.54456633]
[1773516493384,9.32002359,86.938,86.891,4.54456633]
[1773516493682,10.35,86.939,86.891,4.54456633]
[1773516493881,9.32002359,86.938,86.891,4.54456633]
[1773516494082,10.35,86.939,86.891,4.54456633]
[1773516494286,9.32010791,86.938,86.891,4.54456633]
[1773516494486,10.35,86.939,86.891,4.54456633]
[1773516494786,9.32017832,86.938,86.891,4.54456633]
[1773516494987,10.35,86.939,86.891,4.54456633]
[1773516495186,9.32017654,86.938,86.891,4.54456633]
[1773516495386,10.35,86.939,86.891,4.54456633]
[1773516495583,9.32036993,86.938,86.891,4.54456633]
[1773516495887,10.35,86.939,86.891,4.54456633]
[1773516496181,9.32036993,86.938,86.891,4.54456633]
[1773516496376,10.35,86.939,86.891,4.54456633]
[1773516496579,9.3205998,86.938,86.891,4.54456633]
[1773516496778,10.35,86.939,86.891,4.54456633]
[1773516496979,9.32059859,86.938,86.891,4.54456633]
[1773516497182,9.32077116,86.937,86.891,4.54456633]
[1773516497481,10.35,86.939,86.891,4.54456633]
[1773516497679,9.32086798,86.938,86.891,4.54456633]
[1773516497881,9.32086798,86.937,86.891,4.54456633]
[1773516498085,10.35,86.939,86.891,4.54456633]
[1773516498288,9.32107614,86.938,86.891,4.54456633]
[1773516498488,9.32107614,86.937,86.891,4.54456633]
[1773516498688,10.35,86.939,86.891,4.54456633]
[1773516498885,9.3211795,86.938,86.891,4.54456633]
[1773516499090,9.3211795,86.937,86.891,4.54456633]
[1773516499291,10.35,86.939,86.891,4.54456633]
[1773516499484,9.32153584,86.938,86.891,4.54456633]
[1773516499681,10.349,86.947,86.891,4.54456633]
[1773516499886,18.87889195,86.946,86.891,4.54456633]
[1773516500087,9.32185528,86.945,86.891,4.54456633]
[1773516500291,9.32185528,86.944,86.891,4.54456633]
[1773516500488,9.32185528,86.943,86.891,4.54456633]
[1773516500786,9.32185528,86.942,86.891,4.54456633]
[1773516500992,9.32185528,86.941,86.891,4.54456633]
[1773516501192,3.12575016,86.95,86.891,4.54456633]
[1773516501393,18.88073281,86.949,86.893,4.59579703]
[1773516501593,10.349,86.945,86.894,4.58381858]
[1773516501892,9.32276489,86.944,86.894,4.58381858]
[1773516502092,9.32276489,86.943,86.894,4.58381858]
[1773516502295,9.32276489,86.942,86.894,4.58381858]
[1773516502490,9.32276489,86.941,86.894,4.58381858]
[1773516502685,3.12575016,86.95,86.894,4.58381858]
[1773516502892,18.8817572,86.949,86.894,4.58381858]
[1773516503093,18.8817572,86.948,86.894,4.58381858]
[1773516503293,18.8817572,86.947,86.894,4.58381858]
[1773516503488,10.35,86.943,86.894,4.58381858]
[1773516503684,9.32327111,86.942,86.894,4.58381858]
[1773516503887,9.32327111,86.941,86.894,4.58381858]
[1773516504084,9.32327111,86.94,86.894,4.58381858]
[1773516504288,10.35,86.943,86.894,4.58381858]
[1773516504490,9.32434773,86.942,86.894,4.58381858]
[1773516504692,9.32434773,86.941,86.894,4.58381858]
[1773516504891,9.32434773,86.94,86.894,4.58381858]
[1773516505088,10.35,86.943,86.894,4.58381858]
[1773516505294,9.3248838,86.942,86.894,4.58381858]
[1773516505488,9.3248838,86.941,86.894,4.58381858]
[1773516505798,9.3248838,86.94,86.894,4.58381858]
[1773516505995,10.35,86.943,86.894,4.58381858]
[1773516506192,9.32496381,86.942,86.894,4.58381858]
[1773516506398,9.32496381,86.941,86.894,4.58381858]
[1773516506698,9.32496381,86.94,86.894,4.58381858]
[1773516506898,10.35,86.943,86.894,4.58381858]
[1773516507197,9.32563229,86.942,86.894,4.58381858]
[1773516507496,9.32563229,86.941,86.894,4.58381858]
[1773516507697,9.32563229,86.94,86.894,4.58381858]
[1773516507894,9.32563229,86.939,86.894,4.58381858]
[1773516508091,10.35,86.943,86.894,4.58381858]
[1773516508296,9.32715654,86.942,86.894,4.58381858]
[1773516508491,9.32715654,86.941,86.894,4.58381858]
[1773516508792,10.35,86.943,86.894,4.58381858]
[1773516509097,9.32717091,86.942,86.894,4.58381858]
[1773516509298,10.35,86.943,86.894,4.58381858]
[1773516509497,9.32807879,86.942,86.894,4.58381858]
[1773516509798,10.35,86.943,86.894,4.58381858]
[1773516509998,9.32807758,86.942,86.894,4.58381858]
[1773516510198,9.32807758,86.941,86.894,4.58381858]
[1773516510393,10.35,86.943,86.894,4.58381858]
[1773516510598,9.32912143,86.942,86.894,4.58381858]
[1773516510794,9.32912143,86.941,86.894,4.58381858]
[1773516510992,10.35,86.943,86.894,4.58381858]
[1773516511195,18.89503906,86.942,86.894,4.58381858]
[1773516511499,9.32912143,86.941,86.894,4.58381858]
[1773516511798,10.35,86.943,86.894,4.58381858]
[1773516511999,18.89616802,86.942,86.894,4.58381858]
[1773516512199,9.33037939,86.941,86.894,4.58381858]
[1773516512400,10.35,86.943,86.894,4.58381858]
[1773516512600,18.89589342,86.942,86.894,4.58381858]
[1773516512901,9.33024443,86.941,86.894,4.58381858]
[1773516513100,10.35,86.943,86.894,4.58381858]
[1773516513301,18.89571274,86.942,86.894,4.58381858]
[1773516513500,9.33019961,86.941,86.894,4.58381858]
[1773516513701,10.35,86.943,86.894,4.58381858]
[1773516514001,18.89562641,86.942,86.894,4.58381858]
[1773516514302,9.33011328,86.941,86.894,4.58381858]
[1773516514503,10.35,86.943,86.894,4.58381858]
[1773516514702,18.89539229,86.942,86.894,4.58381858]
[1773516514899,9.32999865,86.941,86.894,4.58381858]
[1773516515202,10.35,86.943,86.894,4.58381858]
[1773516515402,18.89519078,86.942,86.896,4.58182226]
[1773516515598,9.32990041,86.941,86.896,4.58182226]
[1773516515805,10.35,86.943,86.896,4.58182226]
[1773516516002,18.89519078,86.942,86.896,4.58182226]
[1773516516200,9.32990041,86.941,86.896,4.58182226]
[1773516516407,10.35,86.943,86.896,4.58182226]
[1773516516605,9.32981832,86.942,86.896,4.58182226]
[1773516516804,9.32981832,86.941,86.896,4.58182226]
[1773516517005,10.35,86.943,86.896,4.58182226]
[1773516517307,18.89835545,86.942,86.896,4.58182226]
[1773516517604,9.32978675,86.941,86.896,4.58182226]
[1773516517806,3.12575016,86.95,86.892,49.64]
[1773516517807,202.11448313,86.976,86.921,4.58073756]
[1773516518001,202.11448313,86.976,86.92,3.12575016]
[1773516518002,3.12575016,86.97,86.91,7.70648772]
[1773516518202,3.12575016,86.96,86.89,3.12575016]
[1773516518399,10.348,86.954,86.904,10.354]
[1773516520704,10.348,86.954,86.904,14.97840745]
[1773516521207,10.348,86.954,86.905,4.62440745]
[1773516536818,10.349,86.947,86.905,4.62440745]
[1773516563946,10.74502182,86.972,86.911,4.60956954]
[1773516564146,18.59175875,86.971,86.911,4.60956954]
[1773516564346,21.71701218,86.97,86.911,4.60956954]
[1773516564545,18.59175875,86.969,86.911,4.60956954]
[1773516564746,18.59175875,86.968,86.911,4.60956954]
[1773516564947,18.59175875,86.967,86.911,4.60956954]
[1773516565243,18.59175875,86.966,86.911,4.60956954]
[1773516565448,18.59175875,86.965,86.911,4.60956954]
[1773516565647,10.347,86.963,86.911,4.60956954]
[1773516565841,18.59175875,86.962,86.911,4.60956954]
[1773516566037,18.59175875,86.961,86.911,4.60956954]
[1773516566242,18.59175875,86.96,86.911,4.60956954]
[1773516566442,18.59175875,86.959,86.911,4.60956954]
[1773516566642,28.93975875,86.958,86.911,4.60956954]
[1773516566843,18.59175875,86.957,86.911,4.60956954]
[1773516567044,9.28814422,86.956,86.911,4.60956954]
[1773516567244,9.28814422,86.955,86.911,4.60956954]
[1773516567446,9.28814422,86.954,86.911,4.60956954]
[1773516567647,9.28814422,86.953,86.911,4.60956954]
[1773516567844,10.348,86.958,86.911,4.60956954]
[1773516568050,9.28870299,86.957,86.911,4.60956954]
[1773516568242,9.28870299,86.956,86.911,4.60956954]
[1773516568446,9.28870299,86.955,86.911,4.60956954]
[1773516568646,9.28870299,86.954,86.911,4.60956954]
[1773516568852,9.28870299,86.953,86.911,4.60956954]
[1773516569149,9.28870299,86.952,86.911,4.60956954]
[1773516569449,9.28870299,86.951,86.911,4.60956954]
[1773516569647,9.28870299,86.95,86.911,4.60956954]
[1773516569848,9.28870299,86.949,86.911,4.60956954]
[1773516570044,10.348,86.958,86.911,4.60956954]
[1773516570245,18.5936557,86.957,86.911,4.60956954]
[1773516570445,9.28899522,86.956,86.911,4.60956954]
[1773516570646,9.28899522,86.955,86.911,4.60956954]
[1773516570851,9.28899522,86.954,86.911,4.60956954]
[1773516571052,9.28899522,86.953,86.911,4.60956954]